Cogmind - Beta 15 @@@ ROGUE MODE // 2025.07.04 @ 20:39:35 Player: Nyannie Result: Destroyed by L-31 Rogue with Katana Performance ------------- Evolutions (1) 500 Regions Visited (2) 400 Robots Destroyed (17) 85 Value Destroyed (392) 392 Prototype IDs (1) 20 Alien Tech Used (0) 0 Bonus (0) 0 TOTAL SCORE: 1397 Bonus ------- None Cogmind --------- Core Integrity 0/400 Matter 281/300 Energy 96/100 System Corruption 5% Temperature Cool (7) Movement Core (100) Ox1 Location -9/Materials Parts ------- > --- POWER (2) -------- (None) > --- PROPULSION (3) --- (None) > --- UTILITY (2) ------ Sensor Array > --- WEAPON (2) ------- Improved Medium Laser > --- INVENTORY (5) ---- Light Armor Plating Advanced Beam Cannon Shotgun Peak State ------------ > --- POWER ------------ Light Ion Engine > --- PROPULSION ------- Aluminum Leg Aluminum Leg > --- UTILITY ---------- Seismic Detector Seismic Detector > --- WEAPON ----------- EM Pulse Gun Small Laser > --- INVENTORY -------- EM Pulse Gun [Rating: 7] Favorites ----------- Power Light Ion Engine Engine Light Ion Engine Propulsion Aluminum Leg Treads Light Treads Leg Aluminum Leg Wheel Wheel Hover Unit Hover Unit Flight Unit Flight Unit Utility Seismic Detector Device Seismic Detector Storage High-capacity Storage Unit Processor Signal Interpreter Weapon Small Laser Energy Gun Small Laser Ballistic Gun Light Assault Rifle Launcher Grenade Launcher Special Weapon Welding Torch Special Melee Weapon Datajack Build | -11 -10 -9 ------- Run | Yrd Mat Mat Slots Evolved 2 | . . 2 Power 1 | . . 1 Propulsion 1 | . . 1 Utility . | . . . Weapon . | . . . Parts Attached 34 | 12 15 7 Power 3 | 2 1 . Engine 3 | 2 1 . Core . | . . . Reactor . | . . . Propulsion 12 | 5 5 2 Treads 1 | . 1 . Leg 3 | 3 . . Wheel 2 | 2 . . Hover 1 | . 1 . Flight 5 | . 3 2 Utility 7 | 2 5 . Device 5 | 2 3 . Storage 1 | . 1 . Processor 1 | . 1 . Hackware . | . . . Protection . | . . . Artifact . | . . . Weapon 12 | 3 4 5 Energy Gun 6 | 3 1 2 Energy Cannon . | . . . Ballistic Gun 2 | . 1 1 Ballistic Cannon . | . . . Launcher 1 | . 1 . Special Weapon 2 | . . 2 Impact Weapon . | . . . Slashing Weapon . | . . . Piercing Weapon . | . . . Special Melee Weapon 1 | . 1 . Unidentified Prototypes 1 | . . 1 Corrupted Parts 1 | 1 . . System Corruption 1 | 1 . . Parts Lost 14 | . 5 9 Power 1 | . . 1 Propulsion 5 | . 2 3 Utility 2 | . 1 1 Weapon 6 | . 2 4 Highest Loss Streak 7 | . 4 7 To Critical Strikes . | . . . Average Backups 3 | 1 3 3 Power . | . . . Propulsion . | . . . Utility 1 | . 2 3 Weapon . | . . . Tool/Special . | . . . Unused Backups 3 | 1 . 2 Power . | . . . Propulsion 1 | 1 . . Utility 1 | . . 1 Weapon 1 | . . 1 Tool/Special . | . . . Average Slot Usage (%) 60 | . 78 33 Engine 9 | . 14 2 Leg 5 | . 9 . Hover 1 | . 2 . Flight 9 | . 10 8 Device 6 | . 10 1 Processor 7 | . 7 7 Energy Gun 9 | . 10 8 Ballistic Gun 4 | . 4 5 Launcher 3 | . 5 . Special Melee Weapon 1 | . 1 . Peak Build Rating 7 | 7 7 6 Average Rating 4 | 4 5 4 On Entrance 3 | . 7 4 Naked Turns . | . . . Heaviest Build 10 | 8 10 6 Greatest Support 20 | 20 20 8 Greatest Overweight (x) 3 | . 3 1 Average Overweight (x) . | . . . Largest Inventory Capacity 20 | 5 20 5 Average Capacity 5 | 5 5 5 Most Carried 5 | 5 5 5 Average Carried 3 | 1 3 3 Final Capacity 5 | 5 5 5 Final Carried 5 | 2 5 3 Class Distribution -------------------- 54% | Scavenger-Mutant 45% | Mutant Dominant Class ---------------- Scavenger-Mutant | -10/Materials Mutant | -9/Materials Resources | -11 -10 -9 ----------- Run | Yrd Mat Mat Matter Collected 729 | 354 290 85 Remotely . | . . . Salvage Created 371 | 93 213 65 Parts 33 | 11 17 5 Haulers Intercepted . | . . . Recyclers Shooed . | . . . Parts Field Recycled . | . . . Retrieved Matter . | . . . Parts Self-Destructed . | . . . Prevented . | . . . Kills | -11 -10 -9 ------- Run | Yrd Mat Mat Combat Hostiles Destroyed 12 | 1 8 3 Guns 9 | 1 5 3 AOE 3 | . 3 . Classes Destroyed 5 | 2 2 1 Tunneler 3 | 3 . . Watcher 2 | . 2 . Swarmer 5 | . 3 2 Grunt 6 | 1 5 . Sentry 1 | . . 1 Best Kill Streak 4 | 2 4 3 Combat Bots Only 3 | 1 3 3 Max Kills in Single Turn 2 | 2 2 1 Gunslinging . | . . . Exploded 1 | . 1 . Melee . | . . . Uniques/NPCs Destroyed . | . . . Combat | -11 -10 -9 -------- Run | Yrd Mat Mat Hostile Shots Fired 185 | 17 48 120 Missed 61 | 5 18 38 Hits 124 | 12 30 82 Melee 1 | . . 1 Projectile 123 | 12 30 81 Critical Strikes 1 | . . 1 Damage Taken 1191 | 131 346 714 Core 503 | 10 83 410 Absorbed by Shields . | . . . Regen/Repaired (Parts) 15 | . . 15 Core Remaining (%) 79 | 96 62 . Volleys Fired 111 | 15 61 35 Largest 2 | 2 2 2 Hottest 80 | 80 70 79 Shots Fired 134 | 30 68 36 Gun 123 | 30 61 32 Cannon . | . . . Launcher 7 | . 7 . Special 4 | . . 4 Kinetic 44 | . 33 11 Thermal 64 | 15 24 25 Explosive 7 | . 7 . Electromagnetic 19 | 15 4 . Robot Hit Streak 13 | 2 13 4 Robot Miss Streak 9 | 9 5 4 Penetration Max . | . . . Secondary Targets . | . . . Shots Hit Robots 53 | 7 25 21 Core Hits 28 | 5 17 6 Critical Kills . | . . . Critical Parts Destroyed 2 | . 1 1 Critical Strikes 3 | . 1 2 Burn 1 | . . 1 Destroy 2 | . 1 1 Melee Attacks 5 | . . 5 Impact . | . . . Slashing . | . . . Piercing . | . . . Sneak Attacks . | . . . Combat Hostiles . | . . . Follow-up Attacks . | . . . Damage Inflicted 952 | 121 559 272 Guns 600 | 121 213 266 Cannons . | . . . Explosions 342 | . 342 . Melee . | . . . Ramming 6 | . 4 2 Kinetic 297 | . 160 137 Thermal 219 | 54 32 133 Explosive 342 | . 342 . Electromagnetic 88 | 67 21 . Impact . | . . . Slashing . | . . . Piercing . | . . . Highest Corruption 5 | 1 1 5 Average Corruption 1 | 1 1 5 Corruption Purged . | . . . Corruption Blocked . | . . . Effects 9 | 1 5 3 Message Errors 3 | 1 2 . Heat Flow Errors 2 | . 1 1 Energy Discharges 1 | . 1 . Data Loss (minor) 2 | . 1 1 Weapon Failures 1 | . . 1 Overload Shots . | . . . Overflow Damage 28 | . 28 . Projectiles . | . . . Explosions 28 | . 28 . Melee . | . . . Knockbacks . | . . . Impact . | . . . Kinetic . | . . . Secondary . | . . . Self-Inflicted Damage 25 | . 24 1 Shots 1 | . 1 . Rammed 3 | . 2 1 Targets Rammed 3 | . 2 1 Kicked . | . . . Crushed . | . . . Highest Temperature 258 | 202 96 258 Average Temperature 41 | 77 17 53 Received Heat Transfer 240 | 72 120 48 Siege Activations . | . . . Martial Activations . | . . . Shielding Activations . | . . . Robots Disrupted . | . . . Combat Hostiles . | . . . Robots Corrupted . | . . . Combat Hostiles . | . . . Parts Fried . | . . . Impact Corruptions . | . . . Robots Melted . | . . . Combat Hostiles . | . . . Parts Melted . | . . . Heat Transferred 584 | 125 75 384 Parts Sabotaged . | . . . Parts Stolen . | . . . Parts Stripped . | . . . Power Chain Reactions . | . . . Alert | -11 -10 -9 ------- Run | Yrd Mat Mat Maximum Alert Level . | . . . Low Security (%) 100 | 100 100 100 Level 1 . | . . . Level 2 . | . . . Level 3 . | . . . Level 4 . | . . . Level 5 . | . . . High Security . | . . . Max Security . | . . . Peak Influence 164 | 25 164 65 Initial 32 | . . 32 Average 41 | 1 84 17 Influence Increases 483 | 35 318 130 Destroy 0b10 Robot/C 240 | 20 160 60 Destroy 0b10 Robot/NC 25 | 15 10 . Destroy Leader 64 | . 44 20 Successful Hack 19 | . 14 5 Disable Machine 60 | . 30 30 Destroy Structure 45 | . 45 . Partial Spotted 15 | . . 15 Lose Combat Pursuer 15 | . 15 . Influence Decreases 483 | 35 240 208 Entered New Map 46 | . . 46 Time Decay 365 | 35 190 140 Lost Part 72 | . 50 22 Squads Dispatched 6 | . 5 1 Investigation 4 | . 3 1 Extermination . | . . . Reinforcement 2 | . 2 . Assault . | . . . Garrison . | . . . Intercept . | . . . Searches Triggered . | . . . Construction Impeded . | . . . Haulers Reinforced . | . . . Active Scanning Responses . | . . . Cargo Convoy Interrupts . | . . . Stealth | -11 -10 -9 --------- Run | Yrd Mat Mat Distress Signals 1 | . 1 . Communications Jammed . | . . . Distress Signals . | . . . Times Spotted 22 | 1 12 9 Peak Tracking Total 5 | 1 5 4 Tactical Retreats 1 | . 1 . Traps | -11 -10 -9 ------- Run | Yrd Mat Mat Traps Triggered 2 | . 2 . Indirectly . | . . . Trap Hack Attempts . | . . . Triggered . | . . . Disarmed . | . . . Reprogrammed 2 | . . 2 Reused . | . . . Traps Extracted . | . . . Installed . | . . . Triggered . | . . . Machines | -11 -10 -9 ---------- Run | Yrd Mat Mat Machines Disabled 4 | . 2 2 Max in Single Turn 1 | . 1 1 Machines Repaired . | . . . Machines Dismantled . | . . . Machines Sabotaged . | . . . Overloaded Fab Kills . | . . . Hacking | -11 -10 -9 --------- Run | Yrd Mat Mat Machines Accessed 7 | . 4 3 Terminals 4 | . 3 1 Fabricators . | . . . Repair Stations 1 | . . 1 Recycling Units 2 | . 1 1 Scanalyzers . | . . . Garrison Access . | . . . Total Hacks 27 | . 15 12 Successful 17 | . 8 9 Failed 10 | . 7 3 Catastrophic 1 | . 1 . Database Lockouts . | . . . Manual 2 | . 2 . Terminals 14 | . 9 5 Fabricators . | . . . Repair Stations 3 | . . 3 Recycling Units 10 | . 6 4 Scanalyzers . | . . . Garrison Access . | . . . Terminal Hacks 10 | . 6 4 Record 4 | . 3 1 Robot Analysis 1 | . 1 . Branch Access Points 1 | . 1 . Locate Traps 1 | . . 1 Reprogram Traps 1 | . . 1 Zone Layout 2 | . 1 1 Fabricator Hacks . | . . . Repair Station Hacks 2 | . . 2 Scan Component 1 | . . 1 Repair 1 | . . 1 Recycling Unit Hacks 5 | . 2 3 Process 2 | . 1 1 Retrieve Matter 2 | . . 2 Retrieve Components 1 | . 1 . Scanalyzer . | . . . Garrison Access Hacks . | . . . Unauthorized Hacks . | . . . Terminals . | . . . Fabricators . | . . . Repair Stations . | . . . Recycling Units . | . . . Scanalyzers . | . . . Garrison Access . | . . . Data Cores Recovered . | . . . Used . | . . . Hacking Detections 4 | . 3 1 Full Trace Events 3 | . 2 1 Feedback Events . | . . . Feedback Blocked . | . . . Robot Schematics Acquired . | . . . Robots Built . | . . . Authchips . | . . . Time . | . . . Total Robot Build Rating . | . . . Part Schematics Acquired . | . . . Parts Built . | . . . Authchips . | . . . Time . | . . . Total Part Build Rating . | . . . Parts Repaired 1 | . . 1 Time 26 | . . 26 Parts Recycled . | . . . Recycled Matter 26 | . . 26 Retrieved Matter 26 | . . 26 Retrieved Components 4 | . 4 . Parts Scanalyzed . | . . . Part Schematics Acquired . | . . . Parts Damaged . | . . . Bothacking | -11 -10 -9 ------------ Run | Yrd Mat Mat Used RIF Installer . | . . . Robots Hacked 1 | . . 1 Non-combat . | . . . Combat 1 | . . 1 Robot Hacks Applied 3 | . . 3 parse_system 3 | . . 3 Relay Couplers Released . | . . . Fabnet Peak Effective % . | . . . Robots Rewired . | . . . Allies Hacked . | . . . Hacks Repelled . | . . . Allies | -11 -10 -9 -------- Run | Yrd Mat Mat Total Allies . | . . . Largest Group . | . . . Highest-Rated Group . | . . . Highest-Rated Ally . | . . . Total Orders . | . . . Ally Attacks . | . . . Total Damage . | . . . Kills . | . . . Allies Corrupted . | . . . Allies Melted . | . . . Intel | -11 -10 -9 ------- Run | Yrd Mat Mat Active Infowar (turns) 433 | 164 233 36 Sensors 149 | . 113 36 Seismic 374 | 164 210 . Robot Analysis Total 1 | . 1 . Derelict Logs Recovered . | . . . Drone Launches . | . . . Drone Recoveries . | . . . Exploration | -11 -10 -9 ------------- Run | Yrd Mat Mat Turns Passed 1381 | 410 589 382 Spaces Moved 1273 | 314 569 390 Core 149 | 44 16 89 Treads 6 | . 6 . Legs 351 | 212 139 . Wheels 58 | 58 . . Hover 89 | . 89 . Flight 620 | . 319 301 Fastest Speed 37 | 50 37 37 Average Speed 79 | 102 73 71 Slowest Speed 200 | 120 200 120 Overloaded Moves . | . . . Propulsion Burnouts . | . . . Robots Hopped 1 | . . 1 Potential Cave-ins . | . . . Cave-ins Triggered . | . . . Exploration Rate (%) 31 | 13 61 21 Regions Visited 2 Branch Regions . Pre-discovered Areas . | . . . Known Exits Taken 1 | . 1 . Unknown Exits Taken 1 | 1 . . Scrap Searched . | . . . Spaces Dug 14 | . 14 . Terrain Destroyed 39 | . 39 . Melee . | . . . Projectile . | . . . AOE 39 | . 39 . Terrain Rammed . | . . . Walls Destroyed . | . . . Machines Disabled . | . . . Actions | -11 -10 -9 --------- Run | Yrd Mat Mat Total 1506 | 369 683 454 Wait . | . . . Move 1269 | 313 568 388 Hop 1 | . . 1 Pick Up 41 | 16 15 10 Fast Attach . | . . . Attach 26 | 7 10 9 Detach 7 | . 7 . Swap 22 | 11 10 1 Drop 21 | 7 10 4 Fire 111 | 15 61 35 Melee 5 | . . 5 Ram 3 | . 2 1 Kick . | . . . Crush . | . . . Escape Stasis . | . . . Rewire . | . . . Trap . | . . . Miscellaneous . | . . . Route ------- -11/Scrapyard -10/Materials (discovered 3 exits: *Mat x2 / Min) -9/Materials History --------- Turn | Location | Event 2 | -11/Scrapyard | Met Revision 17 109 | -11/Scrapyard | Discovered new exit (range 8) 411 | -11/Scrapyard | Entered Materials 412 | -10/Materials | Build established: Scavenger-Mutant 716 | -10/Materials | Discovered new exit (range 16) 723 | -10/Materials | Identified exit to Mines 873 | -10/Materials | Lost 4 parts (2n1u1w) 931 | -10/Materials | Discovered new exit (range 15) 1000 | -10/Materials | Identified exit to Materials 1000 | -10/Materials | Entered another Materials area 1000 | -9/Materials | Evolved 2 slots: Power x1, Propulsion x1 1031 | -9/Materials | Repaired Flight Unit 1114 | -9/Materials | Core integrity fell below 50% 1132 | -9/Materials | Core integrity fell below 20% 1172 | -9/Materials | Build established: Mutant 1189 | -9/Materials | Lost 7 parts (1p2n4w) 1382 | -9/Materials | Destroyed by L-31 Rogue with Katana Last Messages --------------- civilization. By the late 21st century that civilization drained the planet's resources and destabilized the environment to the point that global-scale technology was necessary to maintain an increasingly fragile planet. >>Layout(Zone) Retrieving Zone 7F layout... Downloaded map data. >>Traps(Locate) Found 2 traps in 1 array: 2x EMP Trap Map updated. >>Traps(Reprogram) Reprogrammed 2 EMP Traps. 01353_ ALERT: Suspicious activity at Terminal M002. Dispatching Investigation squad. 01381_ System corrupted: Component data lost. 01381_ L-31 Rogue suffers critical hit (Burn). 01382_ Flight Unit destroyed. [Achievement: First Step to Greatness] Map ----- +----------------------------------------------------+ | | | | | ?????????????????????????????????????????????????? | | ?????????????????????????????????????????????????? | | ??????????????????????????????????##########?????? | | ??????????????????????????????????# T #?????? | | ??????????????????????????????????# !#?????? | | ??????????????????????????????????# """ ! ####### | | ??????????????????????????????????# """"" # | | ?????????????????????######???????# """"" # """ | | ????????????????????? #???????# """" # """ | | ????????????????????? ""#???????# """ # """ | | ??????????????????#?? Y"#???????# # | | ??????????????????# ? ""#???????# # | | ??????????????????# ####????#####+####+####+ | | ??????????????????# + #??????# ## | | ??????????????????# """ # ######## ## | | ??????????????????? """ # # """ # #### | | ????????????????????/ """ # # """ # #??# | | ????????????????????? # # """ + #??# | | ????????????????????? # # # #??# | | ???????????????????####g### + [ # #### | | ???????????????????# + # # | | ???????????????????# """ # ########^ | | ???????????????????# """ l# ########^ " | | | ???????????????????# """ @# "" || | | ???????????????????# # "" || | | ???????????????????# = #### ## """ | | ???????????????????########??# ## " | | ?????????????????????????????#! !## """ == | | ?????????????????????????????##!!!!### """ = | | ??????????????????????????????######?# """ | | ?????????????????????????????????????# " | | ?????????????????????????????????????# | | ?????????????????????????????????????# | | ?????????????????????????????????????# #####+# | | ?????????????????????????????????????# #??? | | ?????????????????????????????????????# #??? | | ?????????????????????????????????????# #?? | | ?????????????????????????????????????# #?? """ | | ????????????????????????????????######+# #? """" | | ????????????????????????????????# # #? """" | | ????????????????????????????????# # # """" | | ????????????????????????????????# + # ???? | | ????????????????????????????????# % # # ???? | | ????????????????????????????????# "Y" # ##????? | | ????????????????????????????????# """ # ####### | | ????????????????????????????????######## """ | | ???????????????????????????????????????# "R" | | ????????????????????????????????######## " " | +----------------------------------------------------+ Best States ------------- Heat Dissipation 28 Energy Generation 10 Energy Capacity 125 Matter Stores 300 Matter Capacity 300 Sight Range 16 Robot Scan Range 14 Terrain Scan Density 10 Evasion (%) 62 Recoil Reduction 1 Item Schematics ----------------- None Robot Schematics ------------------ None Fabricated ------------ Nothing Repaired ---------- Flight Unit | 25% | -9/Materials Alien Tech Used ----------------- None Achievements -------------- Crack Shot First Step to Greatness One Hack Too Far Part-time Mechanic Risk Taker Storm Trooper Uninvited Guest Universal Adapter Challenges ------------ None Game ------ Seed NetworkWeaponsLattice Manual? 0 Play Time 00:51:45 Cumulative 0.8 hours Start 2025.07.04 @ 19:44:33 End 2025.07.04 @ 20:39:35 Sessions 1 Manual Loads 0 Difficulty Rogue Special Mode None Game No. 1 Rogue 1 Adventurer 0 Explorer 0 Win Type - Total 0 Types 0/0/0/0/0/0/0/0/0/0 Lore% 0 Gallery% 1 Achievement% 3 Wizard Run 0 Options --------- Layout 1 ASCII 0 Keyboard 1 Movement Arrows Keybinds 0 Fullscreen 1 Font 24/Proggy Map View 50x35 Zoom Use 0% Tactical HUD 1 Map Filters NONE Filters NONE Steam 1 RUN: 49a5b9b6-6ddb-46df-a8db-c95dd454a79b